bitfinex-derivatives/quotes_ETHF0:USTF0_20240907
["timestamp","ask_amount","ask_price","bid_price","bid_amount"]
[1725690963709,0.4405,2270.7,2270.4,0.44055]
[1725690963910,0.3753,2270.6,2270.4,0.80095]
[1725690966825,0.81582,2270.6,2270.4,0.80095]
[1725690967020,0.3753,2270.6,2270.4,0.80095]
[1725690970014,0.3714,2270.9,2270.4,0.3604]
[1725690970219,0.44051,2270.7,2270.4,0.80095]
[1725690970621,0.3795,2270.7,2270.5,0.44053]
[1725690971620,0.44052,2270.6,2270.4,0.3604]
[1725690971820,0.3788,2270.5,2270.3,6.2578]
[1725690972117,0.3788,2270.5,2270.3,6.6437]
[1725690972426,0.3674,2270.4,2270.3,6.6437]
[1725690973019,0.3674,2270.4,2270.1,3.05]
[1725690973321,0.3824,2270.3,2270.1,3.05]
[1725690973516,0.3824,2270.3,2270.1,3.49061]
[1725690974227,0.44063,2270.0,2269.9,4.73448798]
[1725690974428,0.44063,2270.0,2269.9,3.2078]
[1725690974727,0.44063,2270.0,2269.4,3.05]
[1725690974728,0.44071,2269.7,2269.4,3.05]
[1725690975424,0.81499,2269.8,2269.4,3.49075]
[1725690975823,0.3743,2269.8,2269.4,3.05]
[1725690976031,0.4407,2269.7,2269.4,3.05]
[1725690976222,0.81498,2269.8,2269.4,3.49074]
[1725690976426,0.4407,2269.7,2269.4,3.05]
[1725690976720,0.81498,2269.8,2269.4,3.49074]
[1725690976923,0.81498,2269.8,2269.5,0.44072]
[1725690976924,0.3743,2269.8,2269.5,0.44072]
[1725690977132,0.81498,2269.8,2269.4,3.49074]
[1725690977627,0.81498,2269.8,2269.5,0.44073]
[1725690977817,0.3743,2269.8,2269.5,0.44073]
[1725690978130,0.81497,2269.8,2269.4,3.49074]
[1725690978326,0.81497,2269.8,2269.5,0.44073]
[1725690978623,0.81497,2269.8,2269.4,3.49074]
[1725690979130,0.3743,2269.8,2269.4,3.49074]
[1725690979629,0.3743,2269.8,2269.5,0.44073]
[1725690980018,0.3743,2269.8,2269.6,0.3636]
[1725690982122,0.3743,2269.8,2269.4,7.39858798]
[1725690982323,0.4407,2269.7,2269.4,7.39858798]
[1725690982532,0.4407,2269.7,2269.4,6.2578]
[1725690982929,0.4407,2269.7,2269.4,7.39858798]
[1725690984029,0.4407,2269.7,2269.4,4.19078798]
[1725690986121,0.3743,2269.8,2269.4,4.19078798]
[1725690986322,0.3743,2269.8,2269.4,3.05]
[1725690986527,0.44073,2269.6,2269.4,3.05]
[1725690986741,0.44073,2269.5,2269.4,3.05]
[1725690987338,0.3743,2269.8,2269.4,3.05]
[1725690987339,0.44072,2269.6,2269.4,3.05]
[1725690987531,0.3591,2269.5,2269.4,3.05]
[1725690987838,0.79983,2269.5,2269.4,3.05]
[1725690988637,0.3591,2269.5,2269.4,3.05]
[1725690991028,0.4407,2269.7,2269.4,3.49075]
[1725690991336,0.44071,2269.6,2269.4,3.05]
[1725690992037,0.3739,2269.5,2269.4,3.05]
[1725690994237,0.3739,2269.5,2269.4,3.49075]
[1725690994534,0.44069,2269.7,2269.4,3.49074]
[1725690994740,0.44069,2269.8,2269.5,0.80083]
[1725690995733,0.44069,2269.7,2269.5,0.3601]
[1725690995933,0.44071,2269.6,2269.5,0.3601]
[1725690996130,0.44071,2269.6,2269.4,3.05]
[1725690996337,0.3776,2269.5,2269.4,3.05]
[1725690997639,0.44073,2269.6,2269.4,7.4564]
[1725690997841,0.44069,2269.8,2269.5,0.44072]
[1725690998041,0.75,2269.9,2269.4,3.49074]
[1725690998042,0.4407,2269.7,2269.4,3.49074]
[1725691000445,0.75,2269.9,2269.4,3.05]
[1725691000845,0.44071,2269.7,2269.4,3.05]
[1725691001148,0.44073,2269.5,2269.4,3.05]
[1725691002047,0.44072,2269.6,2269.4,3.05]
[1725691002845,1.10171,2269.8,2269.4,3.05]
[1725691003047,0.44073,2269.6,2269.4,3.05]
[1725691003944,0.44073,2269.6,2269.4,1.27]
[1725691004947,0.44073,2269.5,2269.4,1.27]
[1725691006257,5.965,2270.5,2269.4,11.6764]
[1725691006452,0.3947,2270.4,2270.1,0.44061]
[1725691006765,0.3947,2270.4,2270.2,0.7857]
[1725691006949,0.44052,2270.6,2270.2,0.7857]
[1725691007247,0.44051,2270.7,2270.2,1.22628]
[1725691009246,1.60369,2270.8,2270.3,0.44058]
[1725691009557,1.60369,2270.8,2270.2,1.22628]
[1725691009857,0.4405,2270.7,2270.2,1.22628]
[1725691011251,1.60369,2270.8,2270.3,0.44057]
[1725691011759,0.4405,2270.7,2270.3,0.44057]
[1725691011957,0.4405,2270.7,2270.2,4.43409]
[1725691012756,0.4405,2270.7,2270.3,0.44057]
[1725691013757,3.64829,2270.8,2270.3,0.44057]
[1725691013953,0.3671,2270.7,2270.3,0.44057]
[1725691014159,0.3671,2270.7,2270.3,0.44056]
[1725691014862,0.3671,2270.7,2270.4,0.44055]
[1725691017857,4.38897,2270.9,2270.4,0.82285]
[1725691018062,4.01737,2270.9,2270.4,0.82285]
[1725691018763,0.80957,2270.9,2270.4,0.82285]
[1725691018952,0.80957,2270.9,2270.4,3.87285]
[1725691019152,0.3691,2270.9,2270.2,1.92763776]
[1725691019359,0.44052,2270.7,2270.2,0.7857]
[1725691019562,0.80552,2270.6,2270.2,0.7857]
[1725691019956,0.80552,2270.6,2270.3,3.2078]
[1725691020262,0.365,2270.6,2270.3,3.2078]
[1725691022960,0.365,2270.6,2270.4,0.44055]
[1725691023168,0.365,2270.6,2270.3,3.64837]
[1725691023370,0.365,2270.6,2270.4,0.44055]
[1725691023566,0.365,2270.6,2270.4,0.44054]
[1725691023762,0.80956,2270.9,2270.4,0.44054]
[1725691024066,0.3911,2270.8,2270.4,0.79824]
[1725691026771,0.80956,2270.9,2270.5,0.44054]
[1725691027174,0.80956,2270.9,2270.6,0.3895]
[1725691030465,0.44048,2270.8,2270.6,0.3895]
[1725691030661,0.3691,2270.9,2270.6,0.3895]
[1725691030869,0.44048,2270.8,2270.6,0.3895]
[1725691031470,0.80957,2270.9,2270.6,0.3895]
[1725691034368,0.80957,2270.9,2270.8,1.27]
[1725691034369,0.3691,2270.9,2270.8,1.27]
[1725691034670,0.3587,2271.0,2270.8,1.27]
[1725691035074,0.3587,2271.0,2270.8,1.71048]
[1725691035267,0.3587,2271.0,2270.8,1.27]
[1725691036170,0.3587,2271.0,2270.6,3.5973]
[1725691036370,0.3587,2271.0,2270.2,0.44059]
[1725691036371,0.44052,2270.6,2270.2,0.44059]
[1725691036574,1.55925,2270.5,2270.3,1.27]
[1725691036870,1.1187,2270.5,2270.3,1.27]
[1725691041367,0.44056,2270.4,2270.2,4.8581]
[1725691041572,0.44056,2270.4,2270.2,4.4778]
[1725691042980,1.55925,2270.5,2270.2,4.4778]
[1725691045283,0.44056,2270.4,2270.2,4.4778]
[1725691045677,1.1187,2270.5,2270.2,4.4778]
[1725691045973,0.44056,2270.4,2270.2,4.4778]
[1725691046283,1.1187,2270.5,2270.3,0.3628]
[1725691046485,1.55924,2270.5,2270.3,0.3628]
[1725691046877,1.1187,2270.5,2270.3,0.3628]
[1725691047480,1.55924,2270.5,2270.3,0.3628]
[1725691047987,0.44057,2270.4,2270.2,4.4778]
[1725691048280,0.44057,2270.4,2270.2,1.27]
[1725691048586,1.1187,2270.5,2270.2,1.27]
[1725691049172,0.44058,2270.3,2270.2,1.27]
[1725691049382,0.44058,2270.3,2270.0,2.78043776]
[1725691049684,1.10159,2270.0,2269.7,1.06593775]
[1725691049883,1.10159,2270.0,2269.6,1.06593775]
[1725691049884,0.44069,2269.7,2269.6,1.06593775]
[1725691050076,1.10169,2269.8,2269.3,1.71301053]
[1725691050283,1.10169,2269.8,2269.2,1.27]
[1725691050284,0.44074,2269.5,2269.2,1.27]
[1725691050486,0.3792,2269.4,2269.2,2.98301053]
[1725691050785,0.3792,2269.4,2269.2,1.27]
[1725691050985,0.81995,2269.4,2269.2,1.27]
[1725691051178,1.20035,2269.4,2269.2,1.27]
[1725691051377,0.7596,2269.4,2269.2,1.27]
[1725691051882,0.3792,2269.4,2269.2,1.27]
[1725691052086,0.3792,2269.4,2269.1,3.85931]
[1725691052392,0.3792,2269.4,2269.1,3.4185]
[1725691054985,0.3792,2269.4,2269.1,3.85931]
[1725691055388,3.2078,2269.6,2269.1,3.85931]
[1725691055887,3.64851,2269.6,2269.1,3.4185]
[1725691056780,0.44073,2269.5,2269.1,3.4185]
[1725691057385,0.3631,2269.4,2269.1,3.4185]
[1725691058081,3.64852,2269.6,2269.1,3.4185]
[1725691058392,3.64852,2269.6,2269.1,3.85931]
[1725691058580,3.2078,2269.6,2269.2,0.44079]
[1725691058984,3.2078,2269.6,2269.3,0.3834]
[1725691061585,4.392,2269.7,2269.3,0.3834]
[1725691063088,1.1842,2269.7,2269.3,0.3834]
[1725691063284,4.392,2269.7,2269.3,0.3834]
[1725691064187,4.392,2269.7,2269.3,0.82417]
[1725691064982,3.9513,2269.7,2269.4,0.44074]
[1725691065284,4.39199,2269.7,2269.3,0.82416]
[1725691065786,0.3716,2269.8,2269.4,3.2078]
[1725691066288,0.3716,2269.8,2269.6,0.44071]
[1725691066488,0.3716,2269.8,2269.5,0.80022]
[1725691066797,0.3716,2269.8,2269.6,0.44069]
[1725691066990,1.47716109,2270.0,2269.6,0.4407]
[1725691067191,0.82694,2270.0,2269.6,0.4407]
[1725691068085,0.3863,2270.0,2269.7,0.44069]
[1725691068391,0.3863,2270.0,2269.8,0.364]
[1725691068792,0.3863,2270.0,2269.9,0.3953]
[1725691071384,0.3951,2270.2,2270.0,0.44063]
[1725691071586,0.3951,2270.2,2269.9,0.83595]
[1725691072094,0.3951,2270.2,2269.9,2.10595]
[1725691072497,0.3578,2270.3,2270.0,0.44062]
[1725691072791,0.3578,2270.3,2270.2,0.44059]
[1725691072997,0.7648,2270.6,2270.4,0.44055]
[1725691073186,0.7648,2270.6,2270.4,1.71055]
[1725691073894,0.7648,2270.6,2270.4,0.44055]
[1725691074093,0.7648,2270.6,2270.3,0.80326]
[1725691074307,0.7648,2270.6,2270.3,1.16616]
[1725691074488,0.374,2270.6,2270.4,0.44055]
[1725691076099,0.374,2270.6,2270.3,1.16617]
[1725691079700,0.374,2270.6,2270.4,0.44056]
[1725691079895,0.374,2270.6,2270.3,1.16616]
[1725691080297,0.374,2270.6,2270.4,0.44055]
[1725691082296,0.374,2270.6,2270.3,1.16616]
[1725691082695,0.374,2270.6,2270.3,0.80326]
[1725691085591,0.374,2270.6,2270.3,0.3627]
[1725691085592,0.81453,2270.6,2270.3,0.3627]
[1725691090005,0.81453,2270.6,2270.2,3.49059]
[1725691092910,0.81452,2270.6,2270.3,0.44057]
[1725691093211,0.81452,2270.6,2270.2,3.49058]
[1725691093918,0.81452,2270.6,2270.3,1.27]
[1725691094213,0.374,2270.6,2270.3,2.07507]
[1725691094713,0.374,2270.6,2270.4,0.44056]
[1725691095104,0.374,2270.6,2270.5,0.3765]
[1725691099716,0.374,2270.6,2270.3,2.07506]
[1725691099918,0.374,2270.6,2270.3,2.43466]
[1725691103323,0.374,2270.6,2270.4,0.44056]
[1725691104016,0.3908,2270.7,2270.4,0.44056]
[1725691104318,0.3908,2270.7,2270.4,0.81906]
[1725691104520,1.09065109,2271.1,2270.7,0.44048]
[1725691104724,0.82523,2271.1,2270.8,2.0318]
[1725691108226,0.44044,2271.0,2270.8,2.0318]
[1725691108831,0.82523,2271.1,2270.8,2.0318]
[1725691114338,0.44046,2270.9,2270.8,0.389]
[1725691114631,0.3848,2271.1,2270.8,0.389]
[1725691114632,0.44046,2271.0,2270.8,0.389]
[1725691114941,0.378,2270.9,2270.8,0.389]
[1725691116329,0.81846,2270.9,2270.8,0.389]
[1725691116731,1.54175,2270.7,2270.5,1.71301053]
[1725691117037,0.44059,2270.2,2270.1,0.3702]
[1725691117225,0.44054,2270.5,2270.1,2.08081]
[1725691117423,0.44054,2270.5,2270.2,1.27]
[1725691118025,0.44054,2270.5,2270.2,2.98301053]
[1725691118221,0.3718,2270.6,2270.4,1.27]
[1725691118435,1.02712109,2270.8,2270.5,2.09204]
[1725691118634,0.3769,2270.8,2270.5,2.09204]
[1725691118827,4.02627,2270.9,2270.5,1.6515]
[1725691119030,3.2078,2270.9,2270.6,0.44051]
[1725691119233,3.2078,2270.9,2270.7,0.4405]
[1725691119530,0.41315087,2271.0,2270.8,0.44048]
[1725691119730,0.41315087,2271.0,2270.7,3.42350053]
[1725691119930,0.41315087,2271.0,2270.7,2.15350053]
[1725691122434,0.44041,2271.2,2270.7,2.15350053]
[1725691123325,0.44041,2271.2,2270.8,3.9164661]
[1725691123535,0.44041,2271.2,2270.8,1.71301053]
[1725691123731,0.44041,2271.2,2270.9,0.3759]
[1725691125540,0.364,2271.4,2271.0,3.05]
[1725691125743,0.364,2271.4,2271.2,1.71301053]
[1725691126041,0.44034,2271.6,2271.3,3.91612777]
[1725691126241,0.44034,2271.6,2271.3,2.08891053]
[1725691126443,0.44034,2271.6,2271.3,0.3759]
[1725691126642,0.44036,2271.4,2271.2,1.71301053]
[1725691126833,0.44035,2271.5,2271.3,2.58556508]
[1725691127038,0.44035,2271.5,2271.3,0.3826]
[1725691128934,0.44033,2271.6,2271.3,0.3826]
[1725691129137,0.44035,2271.5,2271.3,0.3826]
[1725691129945,0.44033,2271.6,2271.3,0.3826]
[1725691131037,0.44034,2271.5,2271.3,0.3826]
[1725691132342,3.5883,2271.7,2271.3,0.3826]
[1725691132639,0.44034,2271.5,2271.3,0.3826]
[1725691133647,0.44039,2271.3,2271.1,3.2078]
[1725691133946,0.44039,2271.3,2271.2,0.3635]
[1725691135233,0.44037,2271.4,2271.2,0.3635]
[1725691135637,0.44038,2271.3,2271.2,0.3635]
[1725691135844,0.82038,2271.3,2271.2,0.3635]
[1725691137840,0.38,2271.3,2271.2,0.3635]
[1725691138050,0.82038,2271.3,2271.2,0.3635]
[1725691141344,0.44035,2271.5,2271.2,0.3635]
[1725691141543,0.44032,2271.6,2271.3,1.71037]
[1725691142441,0.81901,2271.7,2271.4,0.44036]
[1725691142646,0.81901,2271.7,2271.3,2.08817]
[1725691143951,0.44032,2271.6,2271.3,2.08817]
[1725691145557,0.3787,2271.7,2271.3,1.6478]
[1725691145748,0.44038,2271.3,2271.2,0.3635]
[1725691146247,1.45904,2271.6,2271.2,0.3635]
[1725691146248,0.44038,2271.4,2271.2,0.3635]
[1725691146653,0.44038,2271.3,2271.2,0.3635]
[1725691147949,0.44042,2271.1,2271.0,1.71301053]
[1725691148150,0.44042,2271.1,2270.6,1.71301053]
[1725691148151,0.4405,2270.8,2270.6,1.71301053]
[1725691148355,0.8151,2270.7,2270.5,1.71301053]
[1725691148554,0.7611,2270.7,2270.5,1.71301053]
[1725691148749,0.7611,2270.7,2270.4,5.70785]
[1725691148750,0.7611,2270.7,2270.4,7.42086053]
[1725691149254,0.7611,2270.7,2270.6,1.27]
[1725691151956,0.7611,2270.7,2270.5,4.76301053]
[1725691152458,0.44045,2271.0,2270.5,5.20354053]
[1725691152650,0.3606,2271.0,2270.6,3.91663788]
[1725691152855,0.44047,2270.9,2270.5,5.20354053]
[1725691153155,0.8057,2271.2,2270.8,0.44047]
[1725691153357,1.01082109,2271.3,2270.9,0.7519]
[1725691153552,0.801,2271.3,2270.9,0.7519]
[1725691153759,0.4404,2271.2,2270.9,0.7519]
[1725691154254,0.44042,2271.1,2270.9,0.3729]
[1725691156057,0.3606,2271.3,2270.9,0.3729]
[1725691156258,0.44046,2271.0,2270.6,5.36132053]
[1725691156555,0.44046,2271.0,2270.7,0.81879]
[1725691157168,0.44047,2270.9,2270.7,0.3783]
[1725691157468,0.3746,2270.8,2270.7,0.3783]
[1725691157853,0.81508,2270.8,2270.7,0.3783]
[1725691158053,0.44047,2270.9,2270.7,0.3783]
[1725691163567,0.81505,2271.0,2270.7,0.81879]
[1725691163761,0.81505,2271.0,2270.8,2.20341735]
[1725691163962,0.81505,2271.0,2270.8,1.71301053]
[1725691164259,0.81505,2271.0,2270.7,2.53181053]
[1725691164260,0.3746,2271.0,2270.7,2.53181053]
[1725691164563,0.81505,2271.0,2270.7,2.53181053]
[1725691166457,0.81505,2271.0,2270.8,2.2034493]
[1725691166663,0.81505,2271.0,2270.7,2.53181053]
[1725691166965,0.81505,2271.0,2270.8,2.20348416]
[1725691167164,0.81505,2271.0,2270.7,2.53181053]
[1725691167366,0.81505,2271.0,2270.8,2.20349379]
[1725691167571,0.81505,2271.0,2270.7,2.53181053]
[1725691169076,0.3746,2271.0,2270.8,2.64386975]
[1725691169367,0.44043,2271.1,2270.8,2.15349053]
[1725691169567,0.44043,2271.1,2270.9,0.3637]
[1725691169770,0.44043,2271.1,2270.9,1.50780811]
[1725691170070,0.758,2271.2,2270.9,1.50780811]
[1725691170273,0.758,2271.2,2270.9,0.3637]
[1725691170461,0.3761,2271.2,2270.9,0.3637]
[1725691170666,0.3761,2271.2,2270.9,1.94825811]
[1725691170667,0.81651,2271.2,2270.9,1.94825811]
[1725691171568,4.01227,2271.4,2271.0,1.58452811]
[1725691171776,0.44036,2271.5,2271.1,1.94271811]
[1725691172066,0.81643,2271.6,2271.3,1.71037]
[1725691172262,0.81643,2271.6,2271.4,0.3637]
[1725691172465,0.3761,2271.6,2271.4,0.3637]
[1725691172671,0.3761,2271.6,2271.5,0.381]
[1725691172866,0.81642,2271.6,2271.5,0.381]
[1725691173178,0.44038,2271.3,2271.2,1.14410811]
[1725691173471,0.44038,2271.3,2271.1,1.52510811]
[1725691174469,0.44038,2271.4,2271.1,1.96552811]
[1725691174972,0.44038,2271.4,2271.1,1.52510811]
[1725691175573,0.3761,2271.6,2271.2,4.61716684]
[1725691175767,0.81643,2271.6,2271.4,1.27]
[1725691176171,0.81643,2271.6,2271.5,0.3765]
[1725691177069,0.3761,2271.6,2271.5,0.3765]
[1725691178375,0.81642,2271.6,2271.5,0.3765]
[1725691179163,0.44035,2271.5,2271.3,1.52040811]
[1725691179368,0.44035,2271.5,2271.3,1.89250811]
[1725691180671,3.2078,2271.9,2271.4,2.41410811]
[1725691180864,0.44031,2271.7,2271.4,2.85445811]
[1725691181271,0.8265,2271.8,2271.4,2.85445811]
[1725691181975,0.44033,2271.6,2271.4,1.14410811]
[1725691182173,0.44032,2271.7,2271.4,1.14410811]
[1725691182372,0.44032,2271.6,2271.4,1.14410811]
[1725691186177,0.44032,2271.7,2271.4,1.14410811]
[1725691186977,0.82649,2271.8,2271.4,1.14410811]
[1725691187280,0.82649,2271.8,2271.5,0.44033]
[1725691188779,0.3862,2271.8,2271.5,0.44033]
[1725691188979,3.2078,2271.9,2271.6,0.44032]
[1725691189285,1.22236,2272.0,2271.7,0.3676]
[1725691189472,0.44026,2272.0,2271.7,0.732]
[1725691190984,0.44028,2271.8,2271.7,0.3644]
[1725691191375,0.83318,2271.9,2271.7,0.3644]
[1725691195579,0.44028,2271.9,2271.7,0.3644]
[1725691197685,0.80178,2271.9,2271.7,0.3644]
[1725691197892,0.3615,2271.9,2271.7,0.3644]
[1725691198189,0.80177,2271.9,2271.7,0.3644]
[1725691198488,0.44029,2271.8,2271.6,3.05]
[1725691198682,0.3667,2271.7,2271.6,3.05]
[1725691199783,0.807,2271.7,2271.5,1.50880811]
[1725691200091,0.3667,2271.7,2271.5,0.80504]
[1725691201393,0.44029,2271.8,2271.5,0.80504]
[1725691201984,0.44029,2271.8,2271.6,1.27]
[1725691202187,0.80178,2271.9,2271.6,1.27]
[1725691202482,0.80178,2271.9,2271.6,1.71032]
[1725691202690,0.80178,2271.9,2271.7,0.374]
[1725691202888,0.80178,2271.9,2271.8,1.27]
[1725691203187,0.44028,2271.9,2271.8,1.27]
[1725691204090,0.44028,2271.9,2271.7,0.374]
[1725691204288,0.44032,2271.7,2271.5,1.50880811]
[1725691204484,1.48755,2272.0,2271.5,1.6347]
[1725691204689,0.4403,2271.8,2271.5,1.6347]
[1725691205296,0.4403,2271.8,2271.5,2.07504]
[1725691205598,0.44032,2271.7,2271.5,1.6347]
[1725691205778,0.81182,2271.7,2271.5,1.6347]
[1725691206183,0.3715,2271.7,2271.5,1.6347]
[1725691206592,0.81181,2271.7,2271.5,1.6347]
[1725691207287,1.48755,2272.0,2271.5,2.07504]
[1725691207288,0.4403,2271.8,2271.5,2.07504]
[1725691207492,0.4403,2271.7,2271.5,1.6347]
[1725691210784,0.7782,2271.9,2271.5,1.6347]
[1725691210990,0.44031,2271.7,2271.5,1.6347]
[1725691211190,0.7782,2271.9,2271.5,2.77880811]
[1725691211497,0.44031,2271.7,2271.5,2.77880811]
[1725691211992,0.4403,2271.8,2271.5,3.21913811]
[1725691212498,0.4403,2271.8,2271.7,1.27]
[1725691213587,1.21848,2271.9,2271.7,2.41410811]
[1725691214602,0.65022109,2272.2,2272.1,0.44023]
[1725691214791,3.64799,2272.3,2272.1,5.18518595]
[1725691215100,3.2078,2272.3,2272.2,4.29699709]
[1725691216387,3.2078,2272.3,2272.2,3.72487488]
[1725691216596,3.2078,2272.3,2272.2,4.29699709]
[1725691218402,3.2078,2272.3,2272.2,3.72480549]
[1725691219397,3.2078,2272.3,2272.2,1.52271893]
[1725691219597,3.2078,2272.3,2272.2,3.72474538]
[1725691220301,0.44016,2272.5,2272.2,3.72474538]
[1725691220489,0.44016,2272.5,2272.3,1.27]
[1725691220690,0.44016,2272.5,2272.3,1.6454]
[1725691221199,1.19544,2272.6,2272.3,1.6454]
[1725691221501,0.44015,2272.5,2272.3,1.6454]
[1725691222700,0.44017,2272.4,2272.3,1.6454]
[1725691223691,0.44017,2272.4,2272.3,1.27]
[1725691224792,1.10048,2272.3,2272.0,1.14081893]
[1725691225101,0.44025,2272.0,2271.9,2.41081893]
[1725691225306,0.44025,2272.0,2271.9,1.27]
[1725691226289,0.44024,2272.1,2271.9,1.27]
[1725691227204,0.44025,2272.0,2271.9,1.27]
[1725691227898,0.44024,2272.1,2271.9,4.61321709]
[1725691228107,0.44024,2272.1,2271.9,2.41081893]
[1725691229199,0.44023,2272.1,2271.9,2.41081893]
[1725691230400,0.7279,2272.2,2271.9,2.41081893]
[1725691230401,1.16812,2272.2,2271.9,2.41081893]
[1725691230600,1.16812,2272.2,2272.1,1.27]
[1725691231311,3.2078,2272.3,2272.1,1.71022]
[1725691231502,3.2078,2272.3,2272.1,2.85103893]
[1725691231701,3.2078,2272.3,2272.2,1.89491893]
[1725691232608,3.2078,2272.3,2272.2,4.09696726]
[1725691233609,0.3624,2272.6,2272.2,9.06995886]
[1725691233810,0.7782,2272.7,2272.5,1.27]
[1725691233811,1.21831,2272.7,2272.5,1.27]
[1725691234106,0.7782,2272.7,2272.6,0.3601]
[1725691234709,0.3921,2272.7,2272.6,0.3601]
[1725691235817,0.83221,2272.7,2272.6,0.3601]
[1725691236027,0.3921,2272.7,2272.6,0.3601]
[1725691236726,1e-08,2272.8,2272.6,2.31361737]
[1725691237025,1e-08,2272.8,2272.7,1.71011]
[1725691237226,1.19894,2273.1,2272.7,5.62464082]
[1725691237415,1.56914,2273.1,2273.0,1.27]
[1725691238024,1.56914,2273.1,2272.8,1.13926078]
[1725691238327,1.56914,2273.1,2272.9,1.27]
[1725691238721,0.44005,2273.0,2272.9,1.27]
[1725691239319,1.56914,2273.1,2272.9,1.27]
[1725691239519,0.44005,2273.0,2272.9,1.27]
[1725691240328,3.2078,2273.4,2272.9,5.6692]
[1725691240519,3.9498,2273.4,2273.3,1.27]
[1725691240718,4.38977,2273.4,2273.3,1.27]
[1725691241136,3.9498,2273.4,2273.3,1.27]
[1725691241427,1.18197,2273.4,2273.3,1.27]
[1725691243031,1.18197,2273.4,2273.2,1.27]
[1725691247632,0.742,2273.4,2273.2,1.27]
[1725691248231,3.2078,2273.7,2273.3,1.27]
[1725691248537,3.64772,2273.7,2273.6,1.27]
[1725691249428,3.64772,2273.7,2273.1,3.5887]
[1725691249731,3.2078,2273.7,2273.3,1.27]
[1725691249925,0.43997,2273.5,2273.3,1.27]
[1725691250126,0.43997,2273.4,2273.3,1.27]
[1725691250537,0.43997,2273.4,2273.3,5.6684]
[1725691251838,3.2078,2273.7,2273.1,3.2078]
[1725691252035,0.44009,2272.8,2272.7,0.3926]
[1725691252429,0.44015,2272.5,2272.4,1.27]
[1725691253539,0.44014,2272.6,2272.4,1.27]
[1725691253734,0.44015,2272.5,2272.4,1.27]
[1725691255541,0.44015,2272.5,2272.3,0.3929]
[1725691256234,0.44014,2272.6,2272.3,0.3929]
[1725691257936,0.44015,2272.5,2272.2,3.04]
[1725691260140,0.44017,2272.4,2272.2,3.04]
[1725691260340,0.44016,2272.5,2272.2,3.04]
[1725691262139,4.3235,2272.7,2272.2,3.04]
[1725691262340,0.44014,2272.6,2272.2,3.04]
[1725691262539,0.44015,2272.5,2272.2,3.04]
[1725691263735,0.44014,2272.6,2272.4,3.04]
[1725691264046,0.44013,2272.6,2272.4,3.04]
[1725691266045,0.44015,2272.5,2272.4,3.04]
[1725691266238,1e-08,2272.5,2272.4,3.04]
[1725691268345,0.44015001,2272.5,2272.4,3.04]
[1725691268741,1e-08,2272.5,2272.4,3.04]
[1725691271044,1e-08,2272.5,2272.4,7.88097]
[1725691271353,1e-08,2272.5,2272.4,17.59170688]
[1725691271542,1e-08,2272.5,2272.4,18.16545663]
[1725691271939,1e-08,2272.5,2272.4,18.38484411]
[1725691272140,0.82585,2273.0,2272.4,18.38477217]
[1725691272345,0.82585,2273.0,2272.7,3.04]
[1725691272549,0.82585,2273.0,2272.8,0.3701]
[1725691273250,0.3858,2273.0,2272.8,0.3701]
[1725691275452,0.3858,2273.0,2272.9,0.3897]
[1725691277851,1.21303,2273.2,2272.9,0.3897]
[1725691278051,0.3918,2273.2,2272.9,1.6597]
[1725691278255,0.83181,2273.2,2272.9,1.6597]
[1725691278454,0.3924,2273.4,2273.1,1.71003]
[1725691278652,0.3924,2273.4,2273.3,1.27]
[1725691279158,0.43996,2273.5,2273.3,1.6517]
[1725691279952,4.3549,2273.6,2273.3,0.3817]
[1725691280159,0.43996,2273.5,2273.3,0.3817]
[1725691280455,0.4399,2273.8,2273.3,0.82168]
[1725691280655,0.43992,2273.7,2273.3,0.82168]
[1725691283758,0.43992,2273.7,2273.3,0.3817]
[1725691284460,0.43992,2273.7,2273.3,0.82169]
[1725691285559,0.43992,2273.7,2273.3,0.3817]
[1725691286062,0.43992,2273.7,2273.3,0.82169]
[1725691286256,0.43996,2273.5,2273.3,0.3817]
[1725691286656,0.7696,2273.4,2273.3,0.3817]
[1725691289566,0.43996,2273.5,2273.3,0.3817]
[1725691289861,0.43996,2273.5,2273.2,3.429]
[1725691289862,0.43999,2273.3,2273.2,3.429]
[1725691290465,0.82489,2273.3,2273.2,3.429]
[1725691291570,0.3849,2273.3,2273.0,3.04]
[1725691291765,0.44003,2273.2,2273.0,3.04]
[1725691292069,0.3892,2273.1,2273.0,3.04]
[1725691293262,0.82923,2273.1,2273.0,3.04]
[1725691293664,0.44005,2273.0,2272.9,0.3605]
[1725691293857,0.83505,2273.0,2272.9,0.3605]
[1725691294063,0.395,2273.0,2272.9,0.3605]
[1725691294663,0.83505,2273.0,2272.9,0.3605]
[1725691295168,0.395,2273.0,2272.9,0.3605]
[1725691297669,0.82924,2273.1,2272.9,0.3605]
[1725691298068,0.3892,2273.1,2272.9,0.3605]
[1725691299063,0.82923,2273.1,2272.9,0.3605]
[1725691299976,0.82923,2273.1,2273.0,1.27]
[1725691303662,5.22843,2273.1,2273.0,1.27]
[1725691305668,0.44007,2273.0,2272.9,1.27]
[1725691305869,0.44009,2272.8,2272.7,1.6635]
[1725691306470,0.79889,2272.8,2272.7,1.6635]
[1725691306774,0.79889,2272.8,2272.7,1.27]
[1725691307475,0.3588,2272.8,2272.7,1.27]
[1725691307670,0.83268,2272.9,2272.7,1.27]